{"text_format":"1","workbook":"xlsx","n_sheets":6,"sheets":["入力フォーム","申請書","証明書","必要書類一覧","消去確認","リスト"],"not_rendered":{"charts":0,"images":0,"macros":1,"external_links":1,"defined_names":2,"comments":0,"pivot_tables":0},"unopened":[],"bounds":{"document_bytes":16777216,"sheet_cells":100000,"rows_first":2000,"rows_last":500,"rows_between":2000,"halvings":0,"cell_chars":16384,"cell_head_chars":4096},"cells_cut":0,"cells_raw":0,"read":"whole","date_system":"1900"}

{"sheet":"入力フォーム","index":0,"n_rows":50,"n_cols":19,"rows_kept":50,"cut":false,"hidden":false,"merged":[[8,14,17,14],[17,1,17,4],[28,3,28,11],[30,4,30,11],[49,1,49,2],[49,3,49,11],[22,13,23,13],[48,1,48,2],[48,3,48,11],[21,1,21,11],[27,1,27,11],[14,1,15,1],[24,3,24,11],[25,3,25,11],[36,3,36,5],[41,3,41,5],[0,1,0,13],[42,3,42,5],[43,3,43,5],[8,2,8,13],[9,2,9,13],[10,2,10,13],[11,2,11,13],[12,2,12,13],[13,2,13,13],[14,2,15,13],[16,2,16,12],[31,3,31,11],[29,3,29,7],[3,1,3,12],[4,1,4,12],[6,1,6,11],[2,1,2,12],[47,1,47,2],[47,3,47,7],[45,1,45,2],[45,3,45,7],[38,3,38,11]]}
[null,"住宅家屋証明申請書入力フォーム"]
[]
[null,"次のフォームの赤枠内（必須）及び青枠内（該当する場合）に必要事項を入力又はリストから該当する項目を選択すると、申請に必要な「申請書、証明書」が作成でき、必要書類一覧が表示されます。"]
[null,"総合判定が○（判定が全て○）になったら入力完了です。シートタブの〈申請書〉及び〈証明書〉を開いて印刷し、必要書類を準備の上、申請をしてください。",null,null,null,null,null,null,null,null,null,null,null,null,"総合判定"]
[null,"必要書類のボタンを押すと、必要書類一覧が表示されます。シートタブの必要書類一覧を開いた場合、正しく表示されないことがありますので、必ず必要書類のボタンを押して表示させてください。",null,null,null,null,null,null,null,null,null,null,null,null,{"$f":"IF(COUNTIF(O9:O50,\"×\")=0,\"○\",\"×\")","v":"×"}]
[]
[null,"証明書の根拠法令"]
[null,"租税特別措置法施行令",null,null,null,null,null,null,null,null,null,null,null,null,"判定"]
[null,null,"（イ）第４１条　認定住宅以外　（ａ）新築されたもの",null,null,null,null,null,null,null,null,null,null,null,{"$f":"IF(B18=\"↑選択済\",\"○\",IF(B18=\"↑選択済（認定住宅を２種類選択）\",\"○\",\"×\"))","v":"×"}]
[null,null,"（イ）第４１条　認定住宅以外　（ｂ）建築後使用されたことのないもの"]
[null,null,"（イ）第４１条　特定認定長期優良住宅　（ｃ）新築されたもの"]
[null,null,"（イ）第４１条　特定認定長期優良住宅　（ｄ）建築後使用されたことのないもの"]
[null,null,"（イ）第４１条　認定炭素素住宅　（ｅ）新築されたもの"]
[null,null,"（イ）第４１条　認定低炭素住宅　（ｆ）建築後使用されたことのないもの"]
[null,null,"（ロ）第４２条第１項（建築後使用されたことのあるもの）　\n　　　（ａ）第４２条の２の２に規定する特定の増改築等がされた家屋で宅地建物取引業者から取得したもの　　　　　"]
[]
[null,null,"（ロ）第４２条第１項（建築後使用されたことのあるもの）　（ｂ）（ａ）以外"]
[null,{"$f":"IF(B19=2,IF(B20=1,リスト!B5,リスト!B3),IF(B19=0,リスト!B2,IF(入力フォーム!B19=1,リスト!B4,IF(入力フォーム!B19>2,リスト!B3,0))))","v":"↑該当するものを選択（○）してください。"}]
[null,{"$f":"COUNTIF(B9:B17,\"○\")","v":0}]
[null,{"$f":"IF(B11=\"○\",IF(B13=\"○\",1,0),0)+IF(B12=\"○\",IF(B14=\"○\",1,0),0)","v":0}]
[]
[null,"申請手続に係る情報（手続きをされる方の情報です）",null,null,null,null,null,null,null,null,null,null,null,"状態"]
[null,"申請日",null,"令和",null,"年",null,"月",null,"日",null,null,null,"←入力は任意です。入力しなかった場合は、\n必ず申請時に申請書へ記入してください。"]
[]
[null,"申請者（又は代理人）住所",null,null,null,null,null,null,null,null,null,null,null,{"$f":"IF($D25=\"\",\"←入力してください\",\"入力済\")","v":"←入力してください"},{"$f":"IF(N25=\"入力済\",\"○\",\"×\")","v":"×"}]
[null,"申請者（又は代理人）氏名",null,null,null,null,null,null,null,null,null,null,null,{"$f":"IF($D26=\"\",\"←入力してください\",\"入力済\")","v":"←入力してください"},{"$f":"IF(N26=\"入力済\",\"○\",\"×\")","v":"×"}]
[]
[null,"証明書に係る情報"]
[null,"申請者の住所",null,null,null,null,null,null,null,null,null,null,null,{"$f":"IF($D29=\"\",\"←入力してください\",\"入力済\")","v":"←入力してください"},{"$f":"IF(N29=\"入力済\",\"○\",\"×\")","v":"×"}]
[null,"申請者の氏名",null,null,null,null,null,null,null,null,null,null,null,{"$f":"IF($D30=\"\",\"←入力してください\",\"入力済\")","v":"←入力してください"},"×"]
[null,"家屋の所在地",null,"川崎市",null,null,null,null,null,null,null,null,null,{"$f":"IF($E31=\"\",\"←入力してください\",\"入力済\")","v":"←入力してください"},"×"]
[null,"家屋番号",null,null,null,null,null,null,null,null,null,null,null,{"$f":"IF($D32=\"\",\"←入力してください\",\"入力済\")","v":"←入力してください"},"×"]
[null,"建築年月日",null,null,null,"年",null,"月",null,"日",null,null,null,{"$f":"IF($D33=\"\",\"←選択・入力してください\",IF($E33=\"\",\"←選択・入力してください\",IF($G33=\"\",\"←選択・入力してください\",IF($I33=\"\",\"←選択・入力してください\",\"選択・入力済\"))))","v":"←選択・入力してください"},{"$f":"IF(N33=\"選択・入力済\",\"○\",\"×\")","v":"×"}]
[]
[null,"取得年月日",null,"令和",null,"年",null,"月",null,"日",null,null,null,{"$f":"IF(B19=0,S35,IF(Q35=\"新築\",IF(E35=\"\",IF(G35=\"\",IF(I35=\"\",S35,R35),R35),R35),IF($E35=\"\",\"←入力してください\",IF($G35=\"\",\"←入力してください\",IF($I35=\"\",\"←入力ください\",\"入力済\")))))","v":"（イ）（ｂ）（ｄ）（ｆ）、（ロ）の場合に入力"},{"$f":"IF(N35=S35,\"\",IF(N35=\"入力済\",\"○\",\"×\"))","v":""},null,{"$f":"IF(B9=\"○\",\"新築\",IF(B11=\"○\",\"新築\",IF(B13=\"○\",\"新築\",\"\")))","v":""},"入力不要です！","（イ）（ｂ）（ｄ）（ｆ）、（ロ）の場合に入力"]
[]
[null,"申請者の居住",null,null,null,null,null,null,null,null,null,null,null,{"$f":"IF($D37=\"\",\"←選択してください\",\"選択済\")","v":"←選択してください"},{"$f":"IF(N37=\"選択済\",\"○\",\"×\")","v":"×"}]
[null,"床面積",null,null,"㎡","※半角小数点で入力してください",null,null,null,null,null,null,null,{"$f":"IF($D38=\"\",\"←入力してください\",IF($D38<50,\"50㎡未満は対象外です\",\"入力済\"))","v":"←入力してください"},"×"]
[null,"構造",null,null,null,null,null,null,null,null,null,null,null,{"$f":"IF($D39=\"\",\"←入力してください\",\"入力済\")","v":"←入力してください"},"×"]
[]
[]
[null,"区分所有建物の耐火性",null,null,null,null,null,null,null,null,null,null,null,{"$f":"IF($D42=\"\",\"（区分所有建物の場合に選択してください）\",\"選択済\")","v":"（区分所有建物の場合に選択してください）"},{"$f":"IF(N42=\"（区分所有建物の場合に選択してください）\",\"\",IF(N42=\"選択済\",\"○\",\"×\"))","v":""}]
[null,"工事費の総額",null,null,null,null,"円",null,null,null,null,null,null,{"$f":"IF($B15=\"\",IF($D43=\"\",\"（（ロ）（ａ）の場合に入力してください）\",\"入力不要です！\"),IF($D43=\"\",\"←入力してください\",\"入力済\"))","v":"（（ロ）（ａ）の場合に入力してください）"},{"$f":"IF(N43=\"（（ロ）（ａ）の場合に入力してください）\",\"\",IF(N43=\"入力済\",\"○\",\"×\"))","v":""}]
[null,"売買価格",null,null,null,null,"円",null,null,null,null,null,null,{"$f":"IF($B15=\"\",IF($D44=\"\",\"（（ロ）（ａ）の場合に入力してください）\",\"入力不要です！\"),IF($D44=\"\",\"←入力してください\",\"入力済\"))","v":"（（ロ）（ａ）の場合に入力してください）"},{"$f":"IF(N44=\"（（ロ）（ａ）の場合に入力してください）\",\"\",IF(N44=\"入力済\",\"○\",\"×\"))","v":""}]
[]
[null,"併用住宅の有無",null,null,null,null,null,null,null,null,null,null,null,{"$f":"IF($D46=\"\",\"←選択してください\",\"選択済\")","v":"←選択してください"},{"$f":"IF(N46=\"選択済\",\"○\",\"×\")","v":"×"}]
[]
[null,"申立日（申立書の日付）から入居までの期間",null,null,null,null,null,null,null,null,null,null,null,{"$f":"IF(D37=リスト!D4,IF($D48=\"\",\"←選択してください\",\"選択済\"),IF($D48=\"\",\"（未入居で申請する場合に選択してください）\",\"選択不要です！\"))","v":"（未入居で申請する場合に選択してください）"},{"$f":"IF(N48=\"（未入居で申請する場合に選択してください）\",\"\",IF(N48=\"選択済\",\"○\",\"×\"))","v":""}]
[null,"区分所有建物の構造",null,null,null,null,null,null,null,null,null,null,null,{"$f":"IF(D42=\"\",IF($D49=\"\",\"（区分所有建物の場合に選択してください）\",\"選択不要です！\"),IF($D49=\"\",\"←選択してください\",\"選択済\"))","v":"（区分所有建物の場合に選択してください）"},{"$f":"IF(N49=\"（区分所有建物の場合に選択してください）\",\"\",IF(N49=\"選択済\",\"○\",\"×\"))","v":""}]
[null,"住民票の異動の有無",null,null,null,null,null,null,null,null,null,null,null,{"$f":"IF(D37=リスト!D3,IF($D50=\"\",\"←選択してください\",\"選択済\"),IF($D50=\"\",\"（入居済で申請する場合に選択してください）\",\"選択不要です！\"))","v":"（入居済で申請する場合に選択してください）"},{"$f":"IF(N50=\"（入居済で申請する場合に選択してください）\",\"\",IF(N50=\"選択済\",\"○\",\"×\"))","v":""}]

{"sheet":"申請書","index":1,"n_rows":53,"n_cols":31,"rows_kept":53,"cut":false,"hidden":false,"merged":[[52,8,52,21],[52,22,52,30],[34,28,34,29],[51,8,51,21],[51,22,51,30],[16,1,18,6],[49,8,49,30],[50,8,50,30],[43,1,43,7],[44,1,44,7],[45,1,45,7],[47,1,47,7],[48,1,48,7],[49,1,49,7],[50,1,50,7],[35,17,36,30],[37,17,38,30],[34,22,34,23],[34,25,34,26],[1,13,1,16],[51,1,51,7],[52,1,52,7],[40,8,40,30],[41,8,41,30],[42,8,42,30],[43,8,43,30],[44,8,44,30],[45,8,45,30],[47,8,47,30],[48,8,48,30],[40,1,40,7],[41,1,41,7],[42,1,42,7],[3,0,3,31],[1,29,1,31],[1,17,1,21],[0,29,0,31],[1,26,1,28],[0,26,0,28],[0,23,0,25],[1,23,1,25]]}
["（第１号様式）",null,null,null,null,null,null,null,null,null,null,null,null,null,null,null,null,null,null,null,null,null,null,"担任",null,null,"係長",null,null,"課長"]
["発行",null,"令和",null,null,"年",null,null,"月",null,null,"日",null,"証明ま建管第",null,null,null,null,null,null,null,null,"号"]
["　"]
["住宅用家屋証明申請書"]
[null,null,null,null,null,null,null,null,null,{"$f":"IF(L9=\"レ\",\"レ\",IF(L11=\"レ\",\"レ\",IF(L15=\"レ\",\"レ\",IF(L17=\"レ\",\"レ\",IF(L21=\"レ\",\"レ\",IF(L23=\"レ\",\"レ\",\"\"))))))","v":""},"（イ）第４１条"]
[]
[null,null,null,null,null,null,null,null,null,null,null,"特定認定長期優良住宅又は認定低炭素住宅以外"]
[]
[null,null,null,null,null,null,null,null,null,null,null,{"$f":"IF(入力フォーム!B9=\"○\",\"レ\",\"\")","v":""},"（ａ）新築されたもの"]
[]
[null,null,null,null,null,null,null,null,null,null,null,{"$f":"IF(入力フォーム!B10=\"○\",\"レ\",\"\")","v":""},"（ｂ）建築後使用されたことのないもの"]
[]
[null,null,null,null,null,null,null,null,null,null,null,"特定認定長期優良住宅"]
[]
[null,null,null,null,null,null,null,null,null,null,null,{"$f":"IF(入力フォーム!B11=\"○\",\"レ\",\"\")","v":""},"（ｃ）新築されたもの"]
[]
[null,"租税特別措置法施行令",null,null,null,null,null,null,null,null,null,{"$f":"IF(入力フォーム!B12=\"○\",\"レ\",\"\")","v":""},"（ｄ）建築後使用されたことのないもの"]
[]
[null,null,null,null,null,null,null,null,null,null,null,"認定低炭素住宅"]
[]
[null,null,null,null,null,null,null,null,null,null,null,{"$f":"IF(入力フォーム!B13=\"○\",\"レ\",\"\")","v":""},"（ｅ）新築されたもの"]
[]
[null,null,null,null,null,null,null,null,null,null,null,{"$f":"IF(入力フォーム!B14=\"○\",\"レ\",\"\")","v":""},"（ｆ）建築後使用されたことのないもの"]
[]
[null,null,null,null,null,null,null,null,null,{"$f":"IF(L27=\"レ\",\"レ\",IF(L30=\"レ\",\"レ\",\"\"))","v":""},"（ロ）第４２条第１項（建築後使用されたことのあるもの）"]
[]
[null,null,null,null,null,null,null,null,null,null,null,{"$f":"IF(入力フォーム!B15=\"○\",\"レ\",\"\")","v":""},"（ａ）第４２条の２の２に規定する特定の増改築等がされた"]
[null,null,null,null,null,null,null,null,null,null,null,null,null,"家屋で、宅地建物取引業者から取得したもの"]
[]
[null,null,null,null,null,null,null,null,null,null,null,{"$f":"IF(入力フォーム!B17=\"○\",\"レ\",\"\")","v":""},"（ｂ） （ａ）以外"]
[]
[null,"の規定に基づき、次の家屋がこの規定に該当するものである旨の証明を申請します。"]
[]
[null,"（申請先）　川崎市長"]
[null,null,null,null,null,null,null,null,null,null,null,null,null,null,null,null,null,null,null,null,null,"令和",{"$f":"IF(入力フォーム!E23=\"\",\"\",入力フォーム!E23)","v":""},null,"年",{"$f":"IF(入力フォーム!G23=\"\",\"\",入力フォーム!G23)","v":""},null,"月",{"$f":"IF(入力フォーム!I23=\"\",\"\",入力フォーム!I23)","v":""},null,"日"]
[null,null,null,null,null,null,null,null,null,null,null,null,null,null,null,null,null,{"$f":"IF(入力フォーム!D25=\"\",\"\",入力フォーム!D25)","v":""}]
[null,null,null,"申請者（または代理人）",null,null,null,null,null,null,null,null,null,null,null,"住所"]
[null,null,null,null,null,null,null,null,null,null,null,null,null,null,null,null,null,{"$f":"IF(入力フォーム!D26=\"\",\"\",入力フォーム!D26)","v":""}]
[null,null,null,null,null,null,null,null,null,null,null,null,null,null,null,"氏名"]
[]
[null,"申請者の住所",null,null,null,null,null,null,{"$f":"IF(入力フォーム!D29=\"\",\"\",入力フォーム!D29)","v":""}]
[null,"申請者の氏名",null,null,null,null,null,null,{"$f":"IF(入力フォーム!D30=\"\",\"\",入力フォーム!D30)","v":""}]
[null,"家屋の所在地",null,null,null,null,null,null,{"$f":"入力フォーム!D31&入力フォーム!E31","v":"川崎市"}]
[null,"家屋番号",null,null,null,null,null,null,{"$f":"IF(入力フォーム!D32=\"\",\"\",入力フォーム!D32)","v":""}]
[null,"建築年月日",null,null,null,null,null,null,{"$f":"入力フォーム!D33&入力フォーム!E33&入力フォーム!F33&入力フォーム!G33&入力フォーム!H33&入力フォーム!I33&入力フォーム!J33","v":"年月日"}]
[null,"取得年月日",null,null,null,null,null,null,{"$f":"IF(入力フォーム!E35=\"\",\"\",入力フォーム!D35&入力フォーム!E35&入力フォーム!F35&入力フォーム!G35&入力フォーム!H35&入力フォーム!I35&入力フォーム!J35)","v":""}]
[]
[null,"申請者の居住",null,null,null,null,null,null,{"$f":"IF(入力フォーム!D37=\"\",\"\",入力フォーム!D37)","v":""}]
[null,"床面積",null,null,null,null,null,null,{"$f":"入力フォーム!D38","v":0}]
[null,"構造",null,null,null,null,null,null,{"$f":"IF(入力フォーム!D39=\"\",\"\",入力フォーム!D39)","v":""}]
[null,"建物の耐火性",null,null,null,null,null,null,{"$f":"IF(入力フォーム!D42=\"\",\"\",入力フォーム!D42)","v":""}]
[null,"工事費用の総額\n（（ロ)(a）の場合に記入）",null,null,null,null,null,null,{"$f":"IF(入力フォーム!D43=\"\",\"\",入力フォーム!D43)","v":""},null,null,null,null,null,null,null,null,null,null,null,null,null,"円"]
[null,"売買価格\n（（ロ)(a）の場合に記入）",null,null,null,null,null,null,{"$f":"IF(入力フォーム!D44=\"\",\"\",入力フォーム!D44)","v":""},null,null,null,null,null,null,null,null,null,null,null,null,null,"円"]

{"sheet":"証明書","index":2,"n_rows":51,"n_cols":29,"rows_kept":51,"cut":false,"hidden":false,"merged":[[50,15,52,24],[36,8,36,28],[37,8,37,28],[38,8,38,28],[39,8,39,28],[40,8,40,28],[41,8,41,28],[3,0,4,29],[39,1,39,7],[40,1,40,7],[41,1,41,7],[36,1,36,7],[37,1,37,7],[38,1,38,7],[18,0,20,7]]}
["（第２号様式）"]
["　"]
[]
["住宅用家屋証明書"]
[]
[]
[null,null,null,null,null,null,null,null,null,{"$f":"申請書!J5","v":""},"（イ）第４１条"]
[]
[null,null,null,null,null,null,null,null,null,null,null,"特定認定長期優良住宅又は認定低炭素住宅以外"]
[]
[null,null,null,null,null,null,null,null,null,null,null,{"$f":"申請書!L9","v":""},"（ａ）新築されたもの"]
[]
[null,null,null,null,null,null,null,null,null,null,null,{"$f":"申請書!L11","v":""},"（ｂ）建築後使用されたことのないもの"]
[]
[null,null,null,null,null,null,null,null,null,null,null,"特定認定長期優良住宅"]
[]
[null,null,null,null,null,null,null,null,null,null,null,{"$f":"申請書!L15","v":""},"（ｃ）新築されたもの"]
[]
["租税特別措置法施行令",null,null,null,null,null,null,null,null,null,null,{"$f":"申請書!L17","v":""},"（ｄ）建築後使用されたことのないもの"]
[]
[null,null,null,null,null,null,null,null,null,null,null,"認定低炭素住宅"]
[]
[null,null,null,null,null,null,null,null,null,null,null,{"$f":"申請書!L21","v":""},"（ｅ）新築されたもの"]
[]
[null,null,null,null,null,null,null,null,null,null,null,{"$f":"申請書!L23","v":""},"（ｆ）建築後使用されたことのないもの"]
[]
[null,null,null,null,null,null,null,null,null,{"$f":"申請書!J25","v":""},"（ロ）第４２条第１項（建築後使用されたことのあるもの）"]
[]
[null,null,null,null,null,null,null,null,null,null,null,{"$f":"申請書!L27","v":""},"（ａ）第４２条の２の２に規定する特定の増改築等がされた"]
[null,null,null,null,null,null,null,null,null,null,null,null,null,"家屋で、宅地建物取引業者から取得したもの"]
[]
[null,null,null,null,null,null,null,null,null,null,null,{"$f":"申請書!L30","v":""},"（ｂ） （ａ）以外"]
[]
[null,"の規定に基づき、次の家屋がこの規定に該当するものである旨を証明します。"]
[]
[]
[null,"申請者の住所",null,null,null,null,null,null,{"$f":"申請書!I41","v":""}]
[null,"申請者の氏名",null,null,null,null,null,null,{"$f":"申請書!I42","v":""}]
[null,"家屋の所在地",null,null,null,null,null,null,{"$f":"申請書!I43","v":"川崎市"}]
[null,"家屋番号",null,null,null,null,null,null,{"$f":"申請書!I44","v":""}]
[null,"建築年月日",null,null,null,null,null,null,{"$f":"申請書!I45","v":"年月日"}]
[null,"取得年月日",null,null,null,null,null,null,{"$f":"申請書!I46","v":""}]
[]
[]
[]
[null,null,null,null,null,null,null,null,null,null,null,null,null,null,null,null,null,"川崎市証明ま建管第",null,null,null,null,null,null,null,null,null,null,"号"]
[]
[null,"令和",null,null,null,"年",null,null,"月",null,null,"日"]
[]
[]
[null,null,null,null,null,null,null,null,null,null,null,null,null,null,null,"川崎市長印"]

{"sheet":"必要書類一覧","index":3,"n_rows":18,"n_cols":3,"rows_kept":18,"cut":false,"hidden":false,"merged":[]}
[]
[null,"必要書類一覧"]
[null,"売買契約書　または　譲渡証明書　【提示】",{"$f":"IF(入力フォーム!B9=\"○\",\"\",IF(入力フォーム!B11=\"○\",\"\",IF(入力フォーム!B13=\"○\",\"\",\"○\")))","v":"○"}]
[null,"建物の登記事項証明書　【提示】\n※登記情報提供サービスから印刷する場合には「照会番号」の添付が必要",{"$f":"IF(入力フォーム!B15=\"○\",\"○\",IF(入力フォーム!B17=\"○\",\"○\",\"\"))","v":""}]
[null,"(1)から(3)のうちいずれか　【提示】\n (1)建物の登記事項証明書（表示）\n (2)建物の登記完了証（書面申請）と表示登記受領証\n (3)建物の登記完了証（電子申請）",{"$f":"IF(入力フォーム!B15=\"○\",\"\",IF(入力フォーム!B17=\"○\",\"\",\"○\"))","v":"○"}]
[null,"住民票の写し　【提示】",{"$f":"IF(入力フォーム!D37=リスト!D3,\"○\",\"\")","v":""}]
[null,"住民票の写し　【提出】",{"$f":"IF(入力フォーム!D37=リスト!D4,\"○\",\"\")","v":""}]
[null,"家屋未使用証明書　【提出】",{"$f":"IF(入力フォーム!B10=\"○\",\"○\",IF(入力フォーム!B12=\"○\",\"○\",IF(入力フォーム!B14=\"○\",\"○\",\"\")))","v":""}]
[null,"申立書（自署又は記名押印されたもの）　【原本提出】",{"$f":"IF(入力フォーム!D37=リスト!D4,\"○\",\"\")","v":""}]
[null,"未入居で申請する場合\n現在住んでいる家屋の処分方法に関する、次の1～9の書類のうちいずれか　【提出】\n 【現在家屋を売却する場合】\n　1 売買契約（予定）書\n　2 不動産業者等との媒介契約書（売買）\n 【現住家屋を賃貸する場合】\n　3 賃貸借契約（予定）書\n　4 不動産業者等との媒介契約書（賃貸借）\n 【現住家屋が借家、借間、社宅、公営住宅等の場合】\n　5 家主との間の賃貸借契約書　※最新の更新期間が記載されているもの\n　6 使用許可書（社宅証明も含む）\n　7 家主からの居住証明書\n 【現住家屋が親族の所有する家屋の場合】\n　8 家屋を所有する親族からの上申書\n 【現住家屋（自己所有）に親族が居住する場合】\n　9 今後居住する親族からの上申書 ※現在家屋に今後申請者が居住用として使用しないことの証明",{"$f":"IF(入力フォーム!D37=リスト!D4,\"○\",\"\")","v":""}]
[null,"申立日（申⽴書の日付）から 2 週間以内に⼊居できない場合\n２週間以内に入居できないことを証する書類　【提出】\n　例）リフォーム工事のため　→　工事の請負業者が作成したリフォーム工事の工程表\n　　　子供の小学校入学時期に合わせるため　→　世帯全員の住民票（該当家族の年齢確認のため）\n　※詳細はお問合せください。",{"$f":"IF(入力フォーム!D48=リスト!H4,\"○\",\"\")","v":""}]
[null,"特定認定長期優良住宅の場合\n次の１～３の書類【提出】\n　1 認定申請書の副本（第１面～第４面）　※戸建ては３面不要\n　2 認定通知書\n　3 変更認定申請書の副本 及び　変更認定通知書　\n　※３については、譲渡人未定のまま認定を受けた、認定後に決定し変更の認定を受けた場合のみ",{"$f":"IF(入力フォーム!B$11=\"○\",\"○\",IF(入力フォーム!B$12=\"○\",\"○\",\"\"))","v":""}]
[null,"認定対炭素住宅の場合\n次の１～３の書類　【提出】\n　1 認定申請書の副本（第１、３、４、６面） ※戸建ては５面不要\n　　 ※旧様式（～H２８）は第１～４面（戸建ては３面不要）\n　2 認定通知書\n　3 変更認定申請書の副本　及び　変更認定通知書\n※変更認定を受けた場合",{"$f":"IF(入力フォーム!B$13=\"○\",\"○\",IF(入力フォーム!B$14=\"○\",\"○\",\"\"))","v":""}]
[null,"昭和５７年１月１日より前に建築された家屋の場合\n次の1～3の書類のうちいずれか　【提出】\n  1 耐震基準適合証明書（当該家屋の取得日前２年以内に当該証明のための家屋の調査が終了したものに限る）\n　2 住宅性能評価書（当該家屋の取得日前２年以内に評価されたものに限る）\n　3 既存住宅売買瑕疵担保責任保険契約に係る保険付き保証明書（当該家屋の取得日前２年以内に契約されたものに限る）",{"$f":"IF(入力フォーム!D33=リスト!C3,IF(入力フォーム!E33<57,\"○\",\"\"),\"\")","v":""}]
[null,"租税特別措置法第７４条の３に規定する特定の増改築等（リフォーム）がされた住宅用家屋の場合\n次の１及び２の書類　【提出】\n　1 増改築等工事証明書（特定の増改築等がされた住宅用家屋の所有権の移転登記の税率の軽減の特例用）\n　2 保険付保証明書（給水管、排水管又は雨水の侵入を防止する部分を担保する既存住宅売買瑕疵担保責任保険が締結されていることを証する書類）\n　※給水管、排水管又は雨水の侵入を防止する部分に係る工事を行い、工事費が５０万円を超える場合のみ",{"$f":"IF(入力フォーム!B15=\"○\",\"○\",\"\")","v":""}]
[null,"木造・軽量鉄骨造などの区分所有建物の場合\n次の１又は２の書類のいずれか【提出】\n　1 建築確認済証及び完了検査済証、建築確認申請書\n　2 建築士（耐火建築物の場合、木造建築士を除く）の証明書等",{"$f":"IF(入力フォーム!D49=リスト!I4,\"○\",\"\")","v":""}]
[null,"併用住宅の場合\n次の書類　【提出】\n　居住の用に供する部分が床面積の９０％以上であることが確認できる書類（図面等）",{"$f":"IF(入力フォーム!D46=リスト!J4,\"○\",\"\")","v":""}]
[null,"住民票の異動が伴わない場合（現住所での建替等）\n取得・又は自己新築かつ入居済み申請で、住民票の「住所を定めた年月日」が「建築年月日」より前となっている場合は、追加で次の書類を用意してください。　【提出】\n　１　申立書（自署又は記名押印されたもの）【原本提出】\n　２　旧住宅の処分に関する書類（解体証明書、閉鎖謄本、滅失登記等）",{"$f":"IF(入力フォーム!D50=リスト!K4,\"○\",\"\")","v":""}]

{"sheet":"消去確認","index":4,"n_rows":5,"n_cols":2,"rows_kept":5,"cut":false,"hidden":false,"merged":[]}
[]
[null,"注意"]
[null,"※入力情報を消去した場合、入力した情報を復元することはできませんので、適宜保存等をお願いします。"]
[null,"※入力情報を消去する場合は、下の入力情報クリアボタンを押して下さい。"]
[null,"※入力情報を消去しない場合は、入力フォームに戻るボタンを押してください。"]

{"sheet":"リスト","index":5,"n_rows":5,"n_cols":11,"rows_kept":5,"cut":false,"hidden":false,"merged":[]}
["根拠法令",null,"年号","申請者の居住","建物の耐火","現在家屋の種類","処分方法","入居期間","構造","併用住宅","住民票"]
[null,"↑該当するものを選択（○）してください。"]
["○","↑選択に誤りがあります。","昭和","(1) 入居済","(1) 耐火または準耐火","自己所有","売却","２週間以内に入居できる","①石造、レンガ造、コンクリートブロック造、S造、RC造、SRC造","専用住宅","住民票の異動手続きを行っている。"]
[null,"↑選択済","平成","(2) 入居予定","(2) 低層集合住宅","借家、借間、社宅、公営住宅等","賃貸","２週間以内に入居できない","②　①以外（木造等）","事務所や店舗等との併用住宅","現住所での建替等により異動手続きは行っていない。"]
[null,"↑選択済（認定住宅を２種類選択）","令和",null,null,"親族の所有する家屋","親族が居住"]